bitfinex-derivatives/quotes_BNBF0:USTF0_20250509
["timestamp","ask_amount","ask_price","bid_price","bid_amount"]
[1746792005526,0.26161638,638.15,637.4,0.30119715]
[1746792005724,0.26161638,638.14,637.4,0.30119715]
[1746792006028,0.26161638,638.13,637.4,0.30119715]
[1746792006227,0.26161638,638.12,637.4,0.30119715]
[1746792006423,0.26161638,638.11,637.4,0.30119715]
[1746792006723,0.26161638,638.1,637.4,0.30119715]
[1746792006924,0.26161638,638.09,637.4,0.30119715]
[1746792007128,0.26161638,638.08,637.4,0.30119715]
[1746792007428,0.26161638,638.07,637.4,0.30119715]
[1746792007723,0.26161638,638.06,637.4,0.30119715]
[1746792007929,0.26161638,638.05,637.4,0.30119715]
[1746792008126,0.26161638,638.04,637.4,0.30119715]
[1746792008325,0.26176303,638.03,637.4,0.30119715]
[1746792008524,0.26176303,638.02,637.4,0.30119715]
[1746792008728,0.26176303,638.01,637.4,0.30119715]
[1746792008926,0.26176303,638.0,637.4,0.30119715]
[1746792009126,0.26176303,637.99,637.4,0.30119715]
[1746792009325,0.26176303,637.98,637.4,0.30119715]
[1746792009625,0.26176303,637.97,637.4,0.30119715]
[1746792009824,0.31332247,638.32,637.4,0.30119715]
[1746792010029,0.26176239,638.31,637.4,0.30119715]
[1746792010329,0.26176239,638.3,637.4,0.30119715]
[1746792010525,0.26176239,638.29,637.4,0.30119715]
[1746792010830,0.26176239,638.28,637.4,0.30119715]
[1746792011029,0.26176239,638.27,637.4,0.30119715]
[1746792011327,0.26176239,638.26,637.4,0.30119715]
[1746792011526,0.26176239,638.25,637.4,0.30119715]
[1746792011827,0.26176239,638.24,637.4,0.30119715]
[1746792012026,0.26176239,638.23,637.4,0.30119715]
[1746792012227,0.26176239,638.22,637.4,0.30119715]
[1746792012427,0.26176239,638.21,637.4,0.30119715]
[1746792012628,0.26176239,638.2,637.4,0.30119715]
[1746792012831,0.26176239,638.19,637.4,0.30119715]
[1746792013032,0.26176239,638.18,637.4,0.30119715]
[1746792013230,0.31332247,638.32,637.4,0.30119715]
[1746792013535,0.26160417,638.31,637.4,0.30119715]
[1746792013730,0.26160417,638.3,637.4,0.30119715]
[1746792013928,0.26160417,638.29,637.4,0.30119715]
[1746792014130,0.26160417,638.28,637.4,0.30119715]
[1746792014432,0.26160417,638.27,637.4,0.30119715]
[1746792014633,0.26160417,638.26,637.4,0.30119715]
[1746792014932,0.31332247,638.32,637.4,0.30119715]
[1746792022036,0.26154093,638.31,637.4,0.30119715]
[1746792022338,0.31332247,638.32,637.4,0.30119715]
[1746792022534,0.26154144,638.3,637.4,0.30119715]
[1746792022743,0.26154144,638.29,637.4,0.30119715]
[1746792023038,0.26154032,638.28,637.4,0.30119715]
[1746792023238,0.26154032,638.27,637.4,0.30119715]
[1746792023438,0.26154032,638.26,637.4,0.30119715]
[1746792023738,0.26153934,638.25,637.4,0.30119715]
[1746792024038,0.26153934,638.24,637.4,0.30119715]
[1746792024234,0.26153934,638.23,637.4,0.30119715]
[1746792024438,0.26153934,638.22,637.4,0.30119715]
[1746792024636,0.26153934,638.21,637.4,0.30119715]
[1746792024934,0.26153934,638.2,637.4,0.30119715]
[1746792025139,0.26153934,638.19,637.4,0.30119715]
[1746792025438,0.26153934,638.18,637.4,0.30119715]
[1746792025637,0.26153934,638.17,637.4,0.30119715]
[1746792025834,0.26153934,638.16,637.4,0.30119715]
[1746792026038,0.26153934,638.15,637.4,0.30119715]
[1746792026236,0.26153934,638.14,637.4,0.30119715]
[1746792026437,0.26153934,638.13,637.4,0.30119715]
[1746792026633,0.26153934,638.12,637.4,0.69619715]
[1746792026839,0.26153934,638.11,637.4,0.69619715]
[1746792027034,0.26153934,638.1,637.4,0.69619715]
[1746792027239,0.26153934,638.09,637.4,0.69619715]
[1746792027539,0.31332247,638.32,637.4,0.69619715]
[1746792027739,0.26152783,638.31,637.4,0.69619715]
[1746792028040,0.26152783,638.3,637.4,0.69619715]
[1746792028336,0.26152783,638.29,637.41,0.31376978]
[1746792028637,0.26152783,638.28,637.41,0.31376978]
[1746792028841,0.26152783,638.27,637.41,0.31376978]
[1746792029039,0.26152783,638.31,637.41,0.31376978]
[1746792029336,0.26149895,638.3,637.41,0.31376978]
[1746792029540,0.26149895,638.29,637.41,0.31376978]
[1746792030038,0.26149895,638.31,637.41,0.31376978]
[1746792030238,0.26149895,638.3,637.41,0.31376978]
[1746792030436,0.26149895,638.29,637.41,0.31376978]
[1746792030638,0.26149895,638.28,637.41,0.31376978]
[1746792030937,0.26149895,638.27,637.41,0.31376978]
[1746792031135,0.26150697,638.26,637.41,0.31376978]
[1746792031339,0.26150697,638.25,637.41,0.31376978]
[1746792031736,0.26150697,638.24,637.41,0.31376978]
[1746792032037,0.26150697,638.23,637.41,0.31376978]
[1746792032336,0.26150697,638.22,637.41,0.31376978]
[1746792032641,0.26150697,638.21,637.41,0.31376978]
[1746792032937,0.31332247,638.32,637.41,0.31376978]
[1746792032938,0.26150697,638.2,637.41,0.31376978]
[1746792033140,0.31332247,638.32,637.41,0.31376978]
[1746792033340,0.26147634,638.31,637.41,0.31376978]
[1746792033540,0.26147634,638.3,637.41,0.31376978]
[1746792033737,0.26147634,638.29,637.41,0.31376978]
[1746792033941,0.26147634,638.28,637.41,0.31376978]
[1746792034240,0.26147634,638.27,637.41,0.31376978]
[1746792034440,0.26147634,638.26,637.41,0.31376978]
[1746792034638,0.26147634,638.25,637.41,0.31376978]
[1746792034837,0.26144882,638.24,637.41,0.31376978]
[1746792035137,0.26144243,638.23,637.42,0.7850054]
[1746792035336,0.26144243,638.22,637.43,1.09876534]
[1746792035543,0.26144243,638.21,637.44,1.09876042]
[1746792035747,0.31332247,638.32,637.45,1.09875549]
[1746792035942,0.26142028,638.2,637.46,1.09875057]
[1746792036243,0.26137702,638.19,637.47,0.7850054]
[1746792036443,0.26137702,638.18,637.48,0.7850054]
[1746792036647,0.26137702,638.17,637.49,0.7850054]
[1746792036846,0.26137702,638.31,637.5,0.7850054]
[1746792037042,0.26137702,638.31,637.51,1.09872596]
[1746792037246,0.26137702,638.31,637.52,1.09872104]
[1746792037443,0.26137702,638.31,637.53,0.7850054]
[1746792037750,0.26137702,638.31,637.54,0.78486573]
[1746792038042,0.26137702,638.31,637.55,0.31370088]
[1746792038643,0.31332247,638.32,637.55,0.31370088]
[1746792038946,0.26138981,638.31,637.55,0.31370088]
[1746792039743,0.26138981,638.3,637.55,0.31370088]
[1746792039944,0.26138981,638.29,637.55,0.31370088]
[1746792040146,0.26138981,638.28,637.55,0.31370088]
[1746792040345,0.26138981,638.27,637.55,0.31370088]
[1746792040645,0.26143905,638.26,637.55,0.31370088]
[1746792040849,0.26143905,638.25,637.55,0.31370088]
[1746792041347,0.26143905,638.24,637.55,0.31370088]
[1746792041547,0.26143905,638.31,637.55,0.31370088]
[1746792041748,0.26143905,638.3,637.55,0.31370088]
[1746792042250,0.26143905,638.3,637.56,0.78486614]
[1746792042449,0.26143905,638.31,637.55,0.31370088]
[1746792042654,0.26143905,638.29,637.56,0.78483978]
[1746792042854,0.26143905,638.31,637.57,0.78483978]
[1746792043154,0.26143905,638.3,637.58,1.0985259]
[1746792043452,0.26143905,638.29,637.59,0.78479033]
[1746792043654,0.26143905,638.28,637.6,0.78479033]
[1746792043855,0.26143905,638.27,637.61,0.78479033]
[1746792044051,0.26143905,638.31,637.62,0.31366644]
[1746792044250,0.26135429,638.3,637.62,0.31366644]
[1746792044450,0.26135429,638.31,637.63,0.78473876]
[1746792044751,0.26132933,638.3,637.64,1.09839536]
[1746792044950,0.26132933,638.3,637.65,0.78468273]
[1746792045155,0.26132933,638.31,637.66,1.0983295]
[1746792045454,0.26132933,638.29,637.67,0.78468273]
[1746792045654,0.26132933,638.29,637.68,0.78468273]
[1746792045851,0.26132933,638.28,637.68,0.31363693]
[1746792046051,0.26132933,638.28,637.69,0.31363201]
[1746792046254,0.26132933,638.31,637.69,0.31363201]
[1746792046453,0.26132933,638.27,637.69,0.31363201]
[1746792046751,0.26132933,638.26,637.69,0.31363201]
[1746792047051,0.26132933,638.25,637.69,0.31363201]
[1746792047251,0.26132933,638.31,637.69,0.31363201]
[1746792047556,0.26132933,638.3,637.69,0.31363201]
[1746792048053,0.26132933,638.31,637.69,0.31363201]
[1746792050656,0.26132933,638.31,637.7,0.78469162]
[1746792050854,0.26132933,638.31,637.69,0.31363201]
[1746792053258,0.26132933,638.31,637.7,1.3857363]
[1746792053460,0.26132933,638.31,637.71,0.78474561]
[1746792053661,0.26132933,638.31,637.69,0.31363201]
[1746792056161,0.26132933,638.31,637.7,0.78478087]
[1746792056357,0.26132933,638.31,637.71,0.78478087]
[1746792056660,0.26132933,638.31,637.72,0.78476524]
[1746792056957,0.26132933,638.31,637.69,0.31363201]
[1746792057160,0.26132933,638.31,637.7,0.78475586]
[1746792057360,0.26132933,638.31,637.71,0.78475586]
[1746792057660,0.26132933,638.31,637.72,0.78475586]
[1746792057857,0.26132933,638.31,637.69,0.31363201]
[1746792058058,0.26132933,638.31,637.7,2.16738954]
[1746792058260,0.26132933,638.31,637.71,0.78475664]
[1746792058461,0.26132933,638.31,637.72,0.78475664]
[1746792058661,0.26132933,638.31,637.73,0.78475664]
[1746792058857,0.26132933,638.31,637.69,0.31363201]
[1746792059156,0.31332247,638.32,637.7,0.78475774]
[1746792059357,0.26135868,638.3,637.71,0.78475774]
[1746792059558,0.26135868,638.3,637.72,0.78475774]
[1746792059757,0.26135868,638.3,637.73,0.78475774]
[1746792059960,0.26135868,638.3,637.74,0.78475774]
[1746792060256,0.26135868,638.3,637.75,0.78473788]
[1746792060462,0.26135868,638.31,637.76,0.78473788]
[1746792060661,0.26135868,638.31,637.77,2.16676278]
[1746792060957,0.26135868,638.31,637.78,0.78473788]
[1746792061258,0.26135868,638.31,637.79,0.78473788]
[1746792061458,0.26135868,638.31,637.69,0.31363201]
[1746792061659,0.26135868,638.31,637.7,0.78468337]
[1746792061858,0.26135868,638.31,637.71,2.16557397]
[1746792062062,0.26135868,638.31,637.72,0.78468337]
[1746792062258,0.26135868,638.31,637.73,0.78468337]
[1746792062458,0.26135868,638.31,637.74,2.16557397]
[1746792062661,0.26135868,638.31,637.75,0.78468337]
[1746792062961,0.26135868,638.31,637.76,0.78468337]
[1746792063158,0.26135868,638.31,637.77,0.78468337]
[1746792063358,0.26135868,638.31,637.69,0.31363201]
[1746792063664,0.26135868,638.31,637.7,2.16550502]
[1746792063863,0.26135868,638.31,637.71,0.78475112]
[1746792064060,0.31332247,638.32,637.69,0.31363201]
[1746792064261,0.26138069,638.3,637.7,0.784815]
[1746792064462,0.26138069,638.3,637.71,0.78481757]
[1746792064657,0.26138069,638.31,637.69,0.31363201]
[1746792064861,0.26138069,638.29,637.7,0.78480354]
[1746792065058,0.26138069,638.3,637.71,0.78480354]
[1746792065264,0.26138069,638.3,637.72,0.78480354]
[1746792065463,0.26138069,638.3,637.73,0.78480354]
[1746792065759,0.26138069,638.31,637.74,0.78480354]
[1746792065962,0.26138069,638.31,637.69,0.31363201]
[1746792066160,0.26138069,638.31,637.7,0.7847726]
[1746792066360,0.26138069,638.31,637.71,0.7847726]
[1746792066560,0.26138069,638.31,637.72,0.7847726]
[1746792066761,0.31332247,638.32,637.73,0.7847726]
[1746792066964,0.26131943,638.3,637.74,0.7847726]
[1746792067159,0.26131943,638.3,637.75,0.7847726]
[1746792067360,0.26131943,638.29,637.76,2.1648694]
[1746792067564,0.26131943,638.31,637.77,2.1648694]
[1746792067762,0.26131943,638.31,637.78,2.1648694]
[1746792068060,0.26131943,638.31,637.79,0.7847726]
[1746792068265,0.26131943,638.31,637.8,0.7847726]
[1746792068565,0.26131943,638.31,637.69,0.31363201]
[1746792068962,0.31332247,638.32,637.69,0.31363201]
[1746792069164,0.26144077,638.31,637.69,0.31363201]
[1746792069365,0.26144077,638.3,637.69,0.31363201]
[1746792069565,0.26144077,638.29,637.69,0.31363201]
[1746792069861,0.26144077,638.28,637.69,0.31363201]
[1746792071168,0.26144077,638.27,637.69,0.31363201]
[1746792071465,0.31332247,638.32,637.69,0.31363201]
[1746792071466,0.26144077,638.26,637.69,0.31363201]
[1746792071665,0.26144077,638.25,637.69,0.31363201]
[1746792071972,0.31332247,638.32,637.69,0.31363201]
[1746792072268,0.26149488,638.31,637.69,0.31363201]
[1746792072465,0.26149488,638.3,637.69,0.31363201]
[1746792072963,0.26149488,638.29,637.69,0.31363201]
[1746792073169,0.26149488,638.31,637.69,0.31363201]
[1746792078974,0.26149488,638.3,637.69,0.31363201]
[1746792079175,0.26149488,638.29,637.69,0.31363201]
[1746792079371,0.26149488,638.28,637.69,0.31363201]
[1746792079571,0.26149488,638.27,637.69,0.31363201]
[1746792079777,0.26149488,638.26,637.69,0.31363201]
[1746792080477,0.26149488,638.25,637.69,0.31363201]
[1746792080779,0.26149488,638.31,637.69,0.31363201]
[1746792081073,0.26149488,638.24,637.69,0.31363201]
[1746792081273,0.26149488,638.23,637.69,0.31363201]
[1746792081579,0.26149488,638.22,637.7,0.78471212]
[1746792081779,0.26149488,638.31,637.71,0.78469878]
[1746792081977,0.26149488,638.31,637.69,0.31363201]
[1746792082176,0.26149488,638.31,637.7,0.7846929]
[1746792082376,0.26149488,638.31,637.71,0.7846929]
[1746792082577,0.26149488,638.31,637.69,0.31363201]
[1746792082975,0.26149488,638.31,637.7,0.78469651]
[1746792083180,0.26149488,638.31,637.69,0.31363201]
[1746792085282,0.26149488,638.31,637.7,0.78467136]
[1746792085583,0.26149488,638.31,637.69,0.31363201]
[1746792085779,0.26149488,638.31,637.7,0.78467011]
[1746792085977,0.26149488,638.31,637.71,0.78465864]
[1746792086280,0.26149488,638.31,637.69,0.31363201]
[1746792086776,0.31332247,638.32,637.69,0.31363201]
[1746792086983,0.26134703,638.31,637.69,0.31363201]
[1746792092586,0.26134703,638.3,637.69,0.31363201]
[1746792092989,0.26134703,638.29,637.69,0.31363201]
[1746792093190,0.26134703,638.28,637.69,0.31363201]
[1746792093590,0.26134703,638.27,637.69,0.31363201]
[1746792093892,0.26134703,638.26,637.69,0.31363201]
[1746792094191,0.26134703,638.25,637.69,0.31363201]
[1746792094387,0.26134703,638.24,637.69,0.31363201]
[1746792094595,0.26134703,638.31,637.69,0.31363201]
[1746792094792,0.26134703,638.3,637.69,0.31363201]
[1746792094991,0.31332247,638.32,637.69,0.31363201]
[1746792094992,0.26134703,638.29,637.69,0.31363201]
[1746792095187,0.26134703,638.28,637.69,0.31363201]
[1746792095392,0.26134703,638.27,637.69,0.31363201]
[1746792095593,0.26134703,638.26,637.69,0.31363201]
[1746792095788,0.26134703,638.25,637.69,0.31363201]
[1746792095987,0.26134703,638.24,637.69,0.31363201]
[1746792096190,0.26134703,638.31,637.69,0.31363201]
[1746792096391,0.26134703,638.3,637.69,0.31363201]
[1746792096591,0.26134703,638.29,637.69,0.31363201]
[1746792096894,0.26147763,638.28,637.69,0.31363201]
[1746792098192,0.26147763,638.27,637.69,0.31363201]
[1746792098692,0.26147763,638.26,637.69,0.31363201]
[1746792099395,0.26147763,638.25,637.69,0.31363201]
[1746792099795,0.57716349,644.89,637.69,0.31363201]
[1746792099997,0.26142145,644.88,637.69,0.31363201]
[1746792100196,0.26142145,644.87,637.69,0.31363201]
[1746792100498,0.57716349,644.89,637.69,0.31363201]
[1746792100801,0.26142031,644.88,637.69,0.31363201]
[1746792101094,0.26142031,644.88,637.28,0.308]
[1746792101297,0.26142031,644.88,637.29,2.15510766]
[1746792101499,0.26142031,644.88,637.3,0.78493856]
[1746792101695,0.57716349,644.89,637.31,0.78493856]
[1746792101997,0.26142224,644.87,637.32,0.78493856]
[1746792102195,0.26142224,644.87,637.33,0.78493856]
[1746792102397,0.26142224,644.87,637.34,0.78493856]
[1746792102596,0.26142224,644.87,637.35,0.78493856]
[1746792102802,0.26142224,644.88,637.28,0.308]
[1746792102998,0.26142224,644.86,637.28,0.308]
[1746792103302,0.26142224,644.85,637.28,0.308]
[1746792103598,0.26142224,644.84,637.28,0.308]
[1746792103900,0.26142224,644.83,637.28,0.308]
[1746792104201,0.26142224,644.82,637.28,0.308]
[1746792104404,0.26142224,644.81,637.28,0.308]
[1746792104604,0.57716349,644.89,637.28,0.308]
[1746792104605,0.26142224,644.8,637.28,0.308]
[1746792104905,0.26142224,644.79,637.28,0.308]
[1746792105104,0.26142224,644.78,637.28,0.308]
[1746792105304,0.26142224,644.77,637.28,0.308]
[1746792106704,0.26142224,644.76,637.28,0.308]
[1746792106904,0.26142224,644.75,637.28,0.308]
[1746792107206,0.26142224,644.74,637.28,0.308]
[1746792107406,0.26142224,644.73,637.28,0.308]
[1746792107707,0.26142224,644.72,637.28,0.308]
[1746792108009,0.26142224,644.71,637.28,0.308]
[1746792108209,0.57716349,644.89,637.28,0.308]
[1746792108512,0.2614696,644.88,637.28,0.308]
[1746792108909,0.2614696,644.87,637.28,0.308]
[1746792109111,0.2614696,644.86,637.28,0.308]
[1746792109411,0.2614696,644.85,637.28,0.308]
[1746792109812,0.2614696,644.84,637.28,0.55]
[1746792110010,0.2614696,644.83,637.28,0.55]
[1746792110211,0.2614696,644.82,637.28,0.55]
[1746792110511,0.2614696,644.81,637.28,0.55]
[1746792110712,0.2614696,644.8,637.28,0.55]
[1746792111015,0.2614696,644.79,637.28,0.55]
[1746792111213,0.2614696,644.78,637.28,0.55]
[1746792111414,0.2614696,644.77,637.28,0.55]
[1746792111612,0.2614696,644.76,637.28,0.55]
[1746792111813,0.2614696,644.75,637.28,0.55]
[1746792112011,0.2614696,644.74,637.28,0.55]
[1746792112216,0.2614696,644.73,637.28,0.55]
[1746792112513,0.2614696,644.72,637.28,0.55]
[1746792112711,0.2614696,644.72,637.29,0.76248266]
[1746792112916,0.2614696,644.71,637.28,0.55]
[1746792113115,0.2614696,644.7,637.29,0.76251158]
[1746792113313,0.2614696,644.69,637.29,0.76251158]
[1746792113511,0.2614696,644.69,637.28,0.55]
[1746792113711,0.2614696,644.68,637.28,0.55]
[1746792114013,0.2614696,644.68,637.29,2.12719088]
[1746792114213,0.2614696,644.68,637.3,0.76235348]
[1746792114415,0.2614696,644.68,637.31,0.76235348]
[1746792114615,0.2614696,644.68,637.32,2.12719088]
[1746792114814,0.2614696,644.68,637.33,2.12719088]
[1746792115018,0.2614696,644.67,637.34,0.76235348]
[1746792115318,0.2614696,644.67,637.28,0.55]
[1746792115319,0.2614696,644.66,637.35,2.12719088]
[1746792115616,0.2614696,644.66,637.36,0.76165987]
[1746792115816,0.3104144,644.3,637.45,0.31375009]
[1746792116017,0.3104144,644.3,637.46,2.12649727]
[1746792116217,0.2614696,644.29,637.47,0.76165987]
[1746792116515,0.2614696,644.28,637.48,0.76165987]
[1746792116817,0.2614696,644.28,637.49,0.76165987]
[1746792117114,0.2614696,644.27,637.5,0.76165987]
[1746792117316,0.2614696,644.27,637.51,0.76165987]
[1746792117515,0.2614696,644.26,637.52,0.76165987]
[1746792117719,0.27214821,644.29,637.45,0.31375009]
[1746792117915,1.41116497,644.28,637.28,0.55]
[1746792118219,0.26119277,644.27,637.47,0.31374025]
[1746792118520,0.26119277,644.26,637.47,0.31374025]
[1746792118918,0.26119277,644.25,637.47,0.31374025]
[1746792119220,0.26119277,644.24,637.47,0.31374025]
[1746792119417,0.26119277,644.23,637.47,0.31374025]
[1746792119717,0.26119277,644.22,637.47,0.31374025]
[1746792120017,0.26119277,644.21,637.47,0.31374025]
[1746792120224,0.26119277,644.21,637.48,0.309]
[1746792120423,0.26119277,644.2,637.48,0.309]
[1746792120719,0.26119277,644.19,637.48,0.309]
[1746792121021,0.27214821,644.29,637.48,0.309]
[1746792121424,0.26116651,644.28,637.48,0.309]
[1746792121721,0.26116651,644.27,637.48,0.309]
[1746792123022,0.26116651,644.26,637.48,0.309]
[1746792123321,0.26116651,644.25,637.48,0.309]
[1746792123621,0.26116651,644.24,637.48,0.309]
[1746792123926,0.26116651,644.23,637.48,0.309]
[1746792124127,0.26116651,644.22,637.48,0.309]
[1746792124326,0.26116651,644.21,637.48,0.309]
[1746792124523,0.26116651,644.2,637.48,0.309]
[1746792124727,0.26116651,644.19,637.49,1.3462439]
[1746792125024,0.26116651,644.18,637.49,1.3462439]
[1746792125423,0.26116651,644.18,637.48,0.309]
[1746792125424,0.26116651,644.17,637.48,0.309]
[1746792125625,0.26116651,644.16,637.48,0.309]
[1746792126123,0.26116651,644.15,637.48,0.309]
[1746792126325,0.26116651,644.14,637.48,0.309]
[1746792126523,0.26116651,644.13,637.48,0.309]
[1746792126727,0.26116651,644.12,637.48,0.309]
[1746792126925,0.26116651,644.11,637.48,0.309]
[1746792127225,0.26116651,644.1,637.49,1.34685]
[1746792127427,0.26116651,644.09,637.5,1.34685]
[1746792127624,0.27215779,644.13,637.5,1.34685]
[1746792127625,0.26116651,644.08,637.5,1.34685]
[1746792127828,0.26116651,644.07,637.5,1.34685]
[1746792128126,0.26116651,644.06,637.51,1.3457954]
[1746792128326,0.26116651,644.05,637.51,1.3457954]
[1746792128528,0.26116651,644.04,637.51,1.3457954]
[1746792128725,0.26116651,644.04,637.52,1.3457954]
[1746792129129,0.26116651,644.04,637.53,1.3457954]
[1746792129829,0.27210672,644.03,637.53,1.3457954]
[1746792130429,0.53327323,644.03,637.54,1.3457954]
[1746792130633,0.26116651,644.02,637.54,1.3457954]
[1746792130831,0.26116651,644.02,637.55,1.3457954]
[1746792131131,0.26109589,644.01,637.55,1.3457954]
[1746792131330,0.27210672,644.03,637.56,1.3457954]
[1746792131534,0.26108888,644.0,637.56,1.3457954]
[1746792131832,0.3104144,644.3,637.57,1.3457954]
[1746792131833,0.5331924,643.99,637.57,1.3457954]
[1746792132034,0.26108888,643.98,637.57,1.3457954]
[1746792132234,0.26108888,643.97,637.58,1.3457954]
[1746792132531,0.26108888,643.96,637.59,1.3457954]
[1746792132832,0.26108888,643.95,637.59,1.3457954]
[1746792133133,0.26108888,643.94,637.6,1.3457954]
[1746792133330,0.26108888,643.93,637.6,1.3457954]
[1746792133533,0.26108888,643.92,637.61,1.3457954]
[1746792133734,0.27210352,643.99,637.48,0.309]
[1746792133932,0.26109466,643.98,637.62,0.338]
[1746792134234,0.26109466,643.97,637.62,0.338]
[1746792134433,0.26109466,643.96,637.62,0.338]
[1746792134831,0.26109466,643.95,637.62,0.338]
[1746792135035,0.26109466,643.94,637.62,0.338]
[1746792135233,0.26109466,643.93,637.62,0.338]
[1746792135735,0.26109466,643.92,637.62,0.338]
[1746792135933,0.53322159,643.92,637.62,0.338]
[1746792136136,0.26109466,643.91,637.62,0.338]
[1746792136335,0.26109466,643.9,637.62,0.338]
[1746792136636,0.26109466,643.89,637.62,0.338]
[1746792136934,0.26109466,643.88,637.62,0.338]
[1746792137138,0.26109466,643.87,637.62,0.338]
[1746792137333,0.26109466,643.86,637.62,0.338]
[1746792137635,0.26109466,643.85,637.62,0.338]
[1746792137835,0.26109466,643.84,637.63,1.3387943]
[1746792138064,0.26109466,643.83,637.63,1.3387943]
[1746792138335,0.26109466,643.82,637.62,0.338]
[1746792138538,0.26109466,643.81,637.62,0.338]
[1746792138738,0.26109466,643.8,637.62,0.338]
[1746792139037,0.26109466,643.79,637.62,0.338]
[1746792139239,0.26109466,643.78,637.62,0.338]
[1746792139536,0.26109466,643.77,637.62,0.338]
[1746792140337,0.26109466,643.76,637.62,0.338]
[1746792140837,0.53322159,643.75,637.62,0.338]
[1746792141139,0.26109466,643.74,637.62,0.338]
[1746792141437,0.26109466,643.73,637.62,0.338]
[1746792141737,0.26109466,643.72,637.62,0.338]
[1746792141936,0.26109466,643.71,637.62,0.338]
[1746792142338,0.26109466,643.7,637.62,0.338]
[1746792142737,0.26109466,643.7,637.63,1.3193086]
[1746792142943,0.26109466,643.69,637.63,1.3193086]
[1746792143238,0.26109466,643.68,637.64,1.3193086]
[1746792143539,0.26109466,643.67,637.65,1.3193086]
[1746792143737,0.26109466,643.66,637.65,1.3193086]
[1746792144140,0.26109466,643.66,637.62,0.338]
[1746792144637,0.27219717,643.65,637.62,0.338]
[1746792145341,0.53329183,643.65,637.62,0.338]
[1746792145538,0.26109466,643.64,637.62,0.338]
[1746792145738,0.26109466,643.63,637.62,0.338]
[1746792146041,0.27219717,643.65,637.62,0.338]
[1746792146042,0.26109466,643.62,637.62,0.338]
[1746792147444,0.26109466,643.61,637.62,0.338]
[1746792147741,0.26109466,643.6,637.62,0.338]
[1746792148244,0.26109466,643.59,637.62,0.338]
[1746792148542,0.26109466,643.58,637.62,0.338]
[1746792148845,0.26109466,643.57,637.62,0.338]
[1746792149042,0.26109466,643.56,637.62,0.338]
[1746792149243,0.26109466,643.55,637.62,0.338]
[1746792149447,0.26109466,643.55,637.63,0.255]
[1746792149744,0.26109466,643.54,637.63,0.255]
[1746792149943,0.26109466,643.53,637.63,0.255]
[1746792150243,0.27219717,643.65,637.63,0.255]
[1746792150443,0.26123544,643.64,637.63,0.255]
[1746792150748,0.26123544,643.63,637.63,0.255]
[1746792151045,0.26123544,643.62,637.63,0.255]
[1746792151244,0.26123544,643.61,637.63,0.255]
[1746792151446,0.26123544,643.6,637.63,0.255]
[1746792151743,0.26123544,643.59,637.63,0.255]
[1746792151950,0.26123544,643.58,637.63,0.255]
[1746792152243,0.26123544,643.57,637.63,0.255]
[1746792152449,0.26123544,643.56,637.63,0.255]
[1746792152646,0.26123544,643.55,637.63,0.255]
[1746792152845,0.26123544,643.54,637.63,0.255]
[1746792153048,0.26123544,643.53,637.63,0.255]
[1746792153346,0.26123544,643.52,637.63,0.255]
[1746792153849,0.26123544,643.51,637.63,0.255]
[1746792154249,0.26123544,643.5,637.63,0.255]
[1746792154545,0.26123544,643.49,637.63,0.255]
[1746792154749,0.26123544,643.48,637.63,0.255]
[1746792154946,0.26123544,643.47,637.63,0.255]
[1746792155145,0.26123544,643.46,637.64,0.306]
[1746792155349,0.26123544,643.45,637.64,0.306]
[1746792155646,0.26123544,643.44,637.64,0.306]
[1746792155951,0.26123544,643.43,637.64,0.306]
[1746792156446,0.26123544,643.42,637.64,0.306]
[1746792157050,0.26123544,643.41,637.64,0.306]
[1746792157546,0.26123544,643.4,637.64,0.306]
[1746792157846,0.26123544,643.39,637.64,0.306]
[1746792158148,0.26123544,643.38,637.64,0.306]
[1746792158348,0.26123544,643.37,637.64,0.306]
[1746792158749,0.26123544,643.36,637.64,0.306]
[1746792159049,0.26123544,643.35,637.64,0.306]
[1746792159450,0.26123544,643.34,637.64,0.306]
[1746792159753,0.26123544,643.33,637.64,0.306]
[1746792160053,0.26123544,643.32,637.64,0.306]
[1746792160254,0.27215566,643.36,637.64,0.306]
[1746792160750,0.26124285,643.35,637.64,0.306]
[1746792161154,0.26124285,643.34,637.64,0.306]
[1746792161352,0.26124285,643.33,637.64,0.306]
[1746792161753,0.26124285,643.32,637.64,0.306]
[1746792162055,0.26124285,643.31,637.64,0.306]
[1746792162252,0.26124285,643.3,637.64,0.306]
[1746792162456,0.53340702,643.3,637.64,0.306]
[1746792162653,0.26124285,643.29,637.64,0.306]
[1746792162852,0.26124285,643.28,637.64,0.306]
[1746792163156,0.26124285,643.27,637.64,0.306]
[1746792163753,0.26124285,643.26,637.64,0.306]
[1746792164459,0.26124285,643.25,637.64,0.306]